bitfinex/quotes_ETHUSD_20250213
["timestamp","ask_amount","ask_price","bid_price","bid_amount"]
[1739461848580,0.015,2662.7,2662.3,3.75606]
[1739461848779,0.0075,2662.7,2662.3,3.75605]
[1739461849074,0.015,2662.7,2661.9,3.75659]
[1739461849275,3.75587,2662.5,2662.0,3.0]
[1739461849700,6.02701,2662.4,2661.9,3.75659]
[1739461850003,0.978271,2662.5,2662.0,3.75656]
[1739461850175,0.0075,2662.7,2662.3,3.75612]
[1739461850377,2.271,2662.7,2662.3,3.75612]
[1739461850560,2.271,2662.7,2662.2,3.75627]
[1739461850561,6.02668,2662.7,2662.2,3.75627]
[1739461851103,2.271,2662.7,2662.0,7.51296]
[1739461851277,0.0075,2662.4,2661.8,3.75672]
[1739461851599,0.0075,2662.1,2661.7,3.75698]
[1739461851782,0.602698,2662.4,2661.4,0.7898]
[1739461851977,0.0075,2662.3,2661.9,3.75665]
[1739461852383,0.015,2662.3,2661.7,3.75689]
[1739461852699,0.0075,2662.3,2661.8,3.75678]
[1739461852900,0.0075,2662.3,2661.9,3.75669]
[1739461853118,3.75582,2662.6,2661.4,0.7898]
[1739461853119,3.75582,2662.6,2662.0,3.7565]
[1739461853263,0.79794079,2662.5,2662.0,3.7565]
[1739461853764,1.06127996,2662.9,2661.5,3.75723]
[1739461853765,8.52882789,2663.0,2662.3,3.75614]
[1739461854002,0.312,2662.9,2662.4,3.75592]
[1739461854350,0.0075,2662.8,2662.2,7.51237]
[1739461854508,0.0075,2662.7,2662.3,3.75611]
[1739461854666,0.0075,2662.7,2662.2,3.75617]
[1739461854862,0.0075,2662.7,2662.3,3.75611]
[1739461855178,0.0075,2662.7,2662.4,3.756]
[1739461855697,3.77031,2662.9,2662.4,3.756]
[1739461856004,1.18991379,2662.9,2662.1,3.7564]
[1739461856224,5.28,2663.2,2662.7,3.75551]
[1739461856538,0.55,2663.1,2661.9,0.827]
[1739461856844,0.55,2663.1,2661.9,4.58371]
[1739461856845,3.75574,2662.6,2661.9,4.58371]
[1739461857031,3.75574,2662.6,2661.9,5.042081]
[1739461857163,0.0075,2662.6,2662.1,3.7564]
[1739461857361,4.22358789,2662.9,2662.3,3.75601]
[1739461857362,3.75534,2662.9,2662.3,3.75601]
[1739461857565,3.75512,2663.1,2662.3,3.75601]
[1739461857764,3.75519,2663.0,2662.4,0.375601]
[1739461857981,3.75519,2663.0,2662.5,3.75585]
[1739461858207,4.06696,2663.2,2662.4,4.131491]
[1739461858369,3.75504,2663.1,2662.5,3.75576]
[1739461858564,3.75504,2663.1,2662.6,3.75572]
[1739461858902,3.75504,2663.1,2662.5,3.75585]
[1739461858903,3.75525,2663.0,2662.5,3.75585]
[1739461859403,3.76266,2663.0,2662.4,0.375601]
[1739461859735,3.76272,2663.0,2662.5,4.58359]
[1739461860236,3.75538,2662.9,2662.4,0.375601]
[1739461860390,0.0075,2662.7,2661.9,1.288971]
[1739461860726,0.0075,2662.7,2661.8,3.75675]
[1739461860727,3.75617,2662.3,2661.8,3.75675]
[1739461860926,3.75617,2662.3,2661.0,4.58858]
[1739461860927,3.75658,2662.0,2661.0,4.58858]
[1739461861072,3.75658,2662.0,2661.5,3.75721]
[1739461861432,4.23108789,2662.3,2661.3,0.73620461]
[1739461861635,3.75581,2662.6,2661.8,3.75674]
[1739461861934,3.75662,2662.0,2661.5,3.75716]
[1739461862132,0.015,2661.9,2661.1,0.34235703]
[1739461862339,2.256,2661.7,2661.3,3.75748]
[1739461862491,7.536,2661.7,2661.1,0.34235703]
[1739461862700,2.256,2661.6,2661.2,3.75769]
[1739461863115,2.256,2661.6,2661.0,3.7579]
[1739461863452,2.256,2661.6,2660.7,3.75827]
[1739461863453,6.01372,2661.2,2660.7,3.75827]
[1739461863662,11.29372,2661.2,2660.7,3.75827]
[1739461863951,7.536,2661.2,2660.7,3.75827]
[1739461864258,7.536,2661.2,2660.5,3.75861]
[1739461864259,2.256,2661.1,2660.4,0.7617]
[1739461864393,6.01392,2661.1,2660.5,3.75867]
[1739461864591,6.01392,2661.1,2660.5,3.0]
[1739461864832,2.256,2661.1,2660.7,3.75838]
[1739461865007,2.256,2661.1,2660.6,3.75841]
[1739461865329,6.01394,2661.1,2660.5,3.0]
[1739461865530,3.75801,2661.0,2660.5,3.0]
[1739461865743,6.01425,2660.9,2660.2,3.75905]
[1739461865950,2.256,2660.9,2660.2,3.75905]
[1739461866485,2.256,2660.8,2660.1,0.804]
[1739461866772,7.98216789,2660.6,2659.9,3.75952]
[1739461867067,0.0075,2660.5,2659.9,3.75952]
[1739461867264,3.75886,2660.4,2659.9,3.0]
[1739461867762,3.77377,2660.5,2659.9,3.0]
[1739461868116,0.0075,2660.3,2659.9,3.0]
[1739461868467,3.75912,2660.2,2659.6,10.48495302]
[1739461868677,3.75911,2660.2,2659.7,3.75981]
[1739461868949,0.09068153,2660.1,2659.9,3.75944]
[1739461869246,0.0075,2660.3,2659.9,3.75944]
[1739461869648,0.09068153,2660.2,2659.7,3.0]
[1739461869949,3.75945,2660.0,2659.6,5.955]
[1739461870151,3.75932,2660.1,2659.6,5.955]
[1739461870680,0.09068153,2660.0,2659.6,5.955]
[1739461870811,0.09068153,2660.0,2659.7,3.75979]
[1739461871016,5.28,2660.4,2659.9,3.75953]
[1739461871256,0.09068153,2660.3,2660.1,3.75922]
[1739461871576,0.09068153,2660.3,2660.0,3.75936]
[1739461871709,0.09068153,2660.3,2659.9,3.75949]
[1739461871710,0.0075,2660.2,2659.9,3.75949]
[1739461871908,0.09068153,2660.3,2660.1,3.75923]
[1739461872177,0.09057744,2660.1,2660.0,0.7863]
[1739461872308,5.28,2660.7,2660.5,3.75865]
[1739461872508,5.28,2660.7,2660.0,8.000232]
[1739461872509,5.28,2661.1,2660.2,3.0]
[1739461872773,5.28,2661.1,2660.7,3.75833]
[1739461873256,5.28,2661.1,2660.0,0.76676185]
[1739461873257,0.0075,2660.8,2660.0,0.76676185]
[1739461873471,0.0075,2660.4,2660.0,3.75939]
[1739461873780,0.0075,2660.4,2660.1,3.75925]
[1739461873932,5.28,2660.7,2659.7,4.54044]
[1739461874115,5.28,2660.8,2660.4,3.75882]
[1739461874307,0.015,2660.7,2659.8,7.809174]
[1739461874633,5.295,2660.7,2660.3,3.75886]
[1739461875152,0.0075,2660.5,2660.1,3.75918]
[1739461875307,0.0075,2660.5,2659.8,3.0]
[1739461875517,0.0075,2660.3,2659.9,3.75943]
[1739461875759,0.0075,2660.3,2659.7,0.7807]
[1739461875979,0.0075,2660.3,2660.0,3.75932]
[1739461876185,5.2875,2660.3,2660.0,3.75938]
[1739461876317,5.2875,2660.3,2660.1,3.75918]
[1739461876655,5.2875,2660.3,2660.0,3.75938]
[1739461876853,2.7855,2660.2,2660.0,3.75938]
[1739461877073,2.256,2660.2,2660.0,3.75938]
[1739461877567,5.28,2660.3,2660.2,3.75911]
[1739461878956,5.28,2660.3,2660.1,3.75917]
[1739461879170,5.28,2660.3,2659.9,3.75943]
[1739461879368,5.28,2660.3,2658.7,6.159]
[1739461879369,6.02299,2660.0,2659.3,4.57175]
[1739461879558,7.5435,2660.0,2659.7,3.7598]
[1739461879774,5.2875,2660.0,2659.8,3.75967]
[1739461880160,5.2875,2660.0,2659.6,3.75987]
[1739461880360,5.2875,2660.0,2659.7,3.75974]
[1739461880555,5.2875,2660.0,2659.4,3.76024]
[1739461880768,5.2875,2660.0,2659.5,3.75999]
[1739461881001,5.2875,2660.0,2659.3,3.76038]
[1739461881002,6.06263325,2659.9,2659.3,3.76038]
[1739461881146,6.06263325,2659.9,2659.1,0.76993686]
[1739461881147,3.75982,2659.7,2659.2,6.76049]
[1739461881348,3.75998,2659.6,2659.2,3.0]
[1739461881581,11.07008289,2660.0,2659.1,3.76057]
[1739461881582,6.846495,2660.0,2659.1,3.76067]
[1739461881765,3.75962,2659.9,2659.4,3.76022]
[1739461881964,3.75962,2659.9,2659.2,3.76044]
[1739461881965,0.0075,2659.8,2659.2,3.76044]
[1739461882295,0.0075,2659.8,2659.4,3.76023]
[1739461882463,5.28,2660.0,2659.7,3.75981]
[1739461882671,5.28,2660.0,2659.7,3.75972]
[1739461882872,5.2875,2660.0,2659.9,3.75953]
[1739461883394,5.2875,2660.0,2659.7,7.51951]
[1739461883546,5.2875,2660.0,2659.5,3.76002]
[1739461883747,0.0075,2659.9,2659.5,3.76006]
[1739461883951,6.11634661,2659.9,2659.5,3.76006]
[1739461884198,6.11634661,2659.9,2659.3,3.76036]
[1739461884357,5.28,2659.8,2659.0,1.53503275]
[1739461884554,5.28,2659.8,2659.4,3.76015]
[1739461884753,6.50346666,2659.8,2659.6,3.75985]
[1739461884998,0.08576661,2659.7,2659.6,3.75985]
[1739461885298,5.28,2659.8,2659.7,3.75982]
[1739461886349,5.28,2659.8,2659.6,3.75995]
[1739461886583,5.28,2659.8,2659.6,3.75987]
[1739461886790,5.28,2659.8,2659.7,3.75982]
[1739461886979,5.28,2660.6,2659.7,3.830869]
[1739461887183,5.28,2660.8,2660.6,3.75848]
[1739461887495,9.50358789,2661.2,2660.7,3.75831]
[1739461887682,5.28,2661.2,2660.7,3.75833]
[1739461887855,0.528,2661.1,2660.5,0.7615]
[1739461888054,5.28,2661.2,2661.0,3.7579]
[1739461888257,5.28,2661.2,2660.9,3.75802]
[1739461888458,5.28,2661.2,2661.1,3.75784]
[1739461889380,5.28,2661.2,2661.0,3.75797]
[1739461889585,5.28,2661.2,2661.1,3.75784]
[1739461889781,5.28,2661.2,2661.0,3.75797]
[1739461889984,5.28,2661.2,2660.5,0.7615]
[1739461889985,5.808,2661.2,2660.5,0.7615]
[1739461890158,5.808,2661.2,2660.8,3.75825]
[1739461890599,0.015,2661.1,2660.6,3.75846]
[1739461890899,0.015,2660.9,2660.1,0.8295]
[1739461891069,0.0075,2660.8,2660.0,0.76747737]
[1739461891271,6.48708789,2660.6,2660.1,3.75925]
[1739461891587,0.015,2660.5,2659.9,0.34243321]
[1739461891770,0.015,2660.5,2660.1,3.75913]
[1739461892099,0.015,2660.5,2660.2,3.75903]
[1739461892300,2.2635,2660.5,2659.9,4.10190321]
[1739461892503,2.256,2660.7,2660.4,3.75875]
[1739461892677,0.312,2660.9,2660.5,3.75867]
[1739461893075,0.312,2660.9,2660.6,3.75854]
[1739461893279,5.28,2660.9,2660.6,3.75854]
[1739461893494,5.28,2660.9,2660.6,3.75844]
[1739461894165,5.28,2660.9,2660.4,3.75877]
[1739461894166,0.0075,2660.8,2660.4,3.75877]
[1739461894370,2.2635,2660.5,2660.0,3.75932]
[1739461894586,7.536,2660.4,2660.0,3.75932]
[1739461895039,0.0075,2660.3,2659.8,3.75961]
[1739461895322,6.02248,2660.3,2659.4,0.7514]
[1739461895533,11.29512,2660.2,2659.7,3.75971]
[1739461895739,11.29512,2660.2,2659.8,3.75966]
[1739461895740,9.04685188,2660.2,2659.8,3.75966]
[1739461896030,7.536,2660.2,2660.0,3.75931]
[1739461896421,7.536,2660.2,2659.8,3.75958]
[1739461897410,7.536,2660.2,2659.9,3.75952]
[1739461897615,7.536,2660.2,2659.7,3.75978]
[1739461897790,7.536,2660.2,2659.8,3.75963]
[1739461898115,7.536,2660.2,2660.0,3.75932]
[1739461898320,7.536,2660.2,2659.8,3.75967]
[1739461898478,7.536,2660.2,2659.9,3.75946]
[1739461898875,0.08315256,2660.1,2659.8,3.75967]
[1739461899074,0.08315256,2660.1,2659.9,3.75951]
[1739461899270,0.08315256,2660.1,2659.5,3.76009]
[1739461899271,2.256,2659.9,2659.5,3.76009]
[1739461899775,5.36315256,2659.8,2659.2,0.8165]
[1739461899980,5.36315256,2659.8,2659.6,3.75985]
[1739461900675,5.36315256,2659.8,2659.5,3.76001]
[1739461901089,5.36315256,2659.8,2659.6,3.75995]
[1739461901274,5.36315256,2659.8,2659.5,3.76008]
[1739461901497,5.36315256,2659.8,2659.4,3.76014]
[1739461901697,5.36315256,2659.8,2659.6,3.75982]
[1739461902221,5.36315256,2659.8,2659.4,3.76014]
[1739461902575,5.28,2659.8,2659.4,3.76014]
[1739461902779,0.0832202,2659.7,2659.6,3.75996]
[1739461903228,5.28,2659.8,2659.7,3.75982]
[1739461904446,5.28,2659.8,2659.7,6.75982]
[1739461904591,3.75835,2660.8,2659.7,6.75982]
[1739461904592,7.536,2660.7,2659.8,6.75964]
[1739461904790,11.29446,2660.7,2660.2,3.75907]
[1739461905035,11.29446,2660.7,2660.0,3.75931]
[1739461905036,2.256,2660.4,2660.0,3.75931]
[1739461905332,2.256,2660.4,2659.9,3.75952]
[1739461905493,3.75898,2660.3,2659.9,3.75952]
[1739461905829,3.75898,2660.3,2659.8,3.75964]
[1739461905830,6.01506,2660.3,2659.8,3.75964]
[1739461906029,0.0075,2660.2,2659.7,3.75981]
[1739461906221,0.0075,2660.2,2659.9,3.75945]
[1739461906402,2.256,2660.3,2660.0,3.75929]
[1739461906741,7.848,2660.7,2660.3,3.75894]
[1739461907029,6.01469,2660.5,2659.9,4.58955]
[1739461907392,5.28,2660.7,2660.2,3.75909]
[1739461907599,5.28,2660.7,2660.3,3.75886]
[1739461907802,5.28,2660.9,2660.2,0.375909]
[1739461908019,5.28,2660.9,2660.5,3.75868]
[1739461908219,5.28,2661.1,2660.6,3.75842]
[1739461908434,5.28,2661.1,2660.7,3.75834]
[1739461908602,5.28,2661.1,2660.5,0.7758]
[1739461908933,5.28,2661.1,2660.5,8.29307]
[1739461909116,6.01399,2661.0,2660.5,8.29299]
[1739461909301,5.81344737,2661.1,2660.5,8.29299]
[1739461909302,5.28,2661.1,2660.5,0.7758]
[1739461909507,5.28,2661.1,2660.9,3.75806]
[1739461909834,5.28,2661.1,2660.5,0.80338986]
[1739461909835,9.03794,2661.1,2660.5,0.7758]
[1739461910059,6.02159,2661.0,2660.4,0.34227465]
[1739461910337,9.03794,2661.1,2660.4,0.34227465]
[1739461910338,6.02183,2660.8,2660.4,0.34227465]
[1739461910635,2.2635,2660.8,2660.4,4.10102465]
[1739461910863,2.2635,2660.8,2660.4,3.75875]
[1739461911050,6.02178,2660.8,2660.3,3.75897]
[1739461911629,6.02178,2660.8,2660.2,3.75901]
[1739461911872,2.256,2660.5,2660.1,3.75924]
[1739461912173,2.256,2660.5,2660.2,3.0]
[1739461912351,7.536,2660.5,2659.9,3.75942]
[1739461912554,2.256,2660.1,2659.7,3.75971]
[1739461912732,2.256,2660.1,2659.6,3.75984]
[1739461912931,2.256,2660.1,2659.7,3.7598]
[1739461913147,2.256,2660.1,2659.8,3.75963]
[1739461913571,2.256,2660.0,2659.7,3.7597]
[1739461913867,2.256,2660.0,2659.9,3.75953]
[1739461914067,2.256,2660.3,2659.7,1.14667]
[1739461914366,5.28,2660.5,2660.3,3.7589]
[1739461914699,5.28,2660.5,2659.7,0.7707]
[1739461914700,5.28,2660.5,2660.1,3.75913]
[1739461914845,5.28,2660.5,2660.0,3.75926]
[1739461915171,2.256,2660.4,2659.9,3.0]
[1739461915360,2.256,2660.4,2660.2,3.7591]
[1739461915523,2.256,2660.4,2660.2,7.51813]
[1739461915892,2.256,2660.4,2660.2,3.75903]
[1739461916031,5.28,2660.5,2660.2,3.75903]
[1739461916365,2.256,2660.6,2660.3,3.75895]
[1739461916581,2.256,2660.6,2660.4,3.75882]
[1739461916867,5.28,2660.9,2660.6,3.75848]
[1739461917082,5.28,2660.9,2660.3,0.375895]
[1739461917292,5.28,2660.9,2660.8,3.75826]
[1739461917429,5.28,2660.9,2660.7,3.75839]
[1739461917430,5.28,2661.0,2660.7,7.51672]
[1739461917637,5.28,2661.0,2660.7,3.75833]
[1739461918133,5.28,2661.0,2660.8,3.75825]
[1739461918362,5.28,2661.0,2660.7,3.7584]
[1739461918563,5.28,2661.0,2660.6,7.51693]
[1739461918757,5.28,2661.0,2660.6,3.75845]
[1739461918934,5.28,2661.0,2660.8,3.75818]
[1739461919429,5.28,2661.0,2660.6,3.75847]
[1739461919629,11.29407,2661.0,2660.5,3.75867]
[1739461919860,2.256,2660.8,2659.9,1.14397]
[1739461920042,7.536,2660.8,2660.5,3.75858]
[1739461920256,7.536,2660.8,2660.6,3.7585]
[1739461920452,7.536,2660.8,2660.3,3.75886]
[1739461920654,7.536,2660.8,2660.1,3.0]
[1739461920855,7.536,2660.8,2660.4,3.75876]
[1739461921369,5.28,2660.8,2660.7,3.7584]
[1739461921772,5.28,2660.8,2660.2,3.75911]
[1739461922082,0.0075,2660.6,2659.8,0.7988]
[1739461922248,0.08361358,2660.5,2660.2,3.75908]
[1739461922575,2.256,2660.5,2660.2,3.75908]
[1739461922772,2.256,2660.5,2659.8,3.7988]
[1739461922773,0.08361358,2660.4,2659.8,0.7988]
[1739461922973,2.256,2660.2,2659.7,3.75971]
[1739461923173,2.256,2660.2,2659.6,3.75988]
[1739461923174,2.256,2660.2,2659.8,3.75965]
[1739461923332,0.08361358,2660.4,2659.6,3.75988]
[1739461923333,2.256,2660.4,2660.1,3.75914]
[1739461924075,2.256,2660.4,2660.2,3.75911]
[1739461924478,0.0075,2660.3,2659.9,3.75942]
[1739461924776,2.256,2660.2,2659.8,3.75962]
[1739461924960,6.0152,2660.2,2659.7,3.75971]
[1739461925165,2.256,2660.2,2659.5,0.7638]
[1739461925359,2.256,2660.2,2659.8,3.75961]
[1739461925978,2.256,2660.2,2659.7,3.75982]
[1739461926178,2.256,2660.2,2659.8,3.75966]
[1739461926336,2.256,2660.2,2659.8,7.51932]
[1739461926538,2.256,2660.2,2659.8,3.75966]
[1739461926836,4.24403737,2660.8,2660.0,3.75938]
[1739461926837,2.256,2660.4,2660.0,3.75938]
[1739461927171,2.256,2660.7,2659.9,0.8017]
[1739461927373,2.256,2660.7,2660.2,3.759]
[1739461927579,6.01453,2660.7,2660.2,3.759]
[1739461927900,2.256,2660.7,2660.3,3.75889]
[1739461928188,2.256,2660.7,2660.1,3.75925]
[1739461928474,2.256,2660.8,2660.5,3.75866]
[1739461928679,5.28,2660.7,2660.6,3.75854]
[1739461928879,9.03728,2661.5,2661.0,3.75794]
[1739461929081,5.28,2661.5,2661.1,3.75784]
[1739461929284,5.28,2661.5,2661.2,3.75769]
[1739461929584,5.28,2661.5,2660.9,3.75806]
[1739461929585,0.0075,2661.4,2660.9,3.75806]
[1739461929803,6.0137,2661.2,2660.7,3.75832]
[1739461929943,2.256,2661.2,2660.5,0.8039]
[1739461930153,2.256,2661.2,2661.0,3.75791]
[1739461930449,5.28,2661.5,2661.2,3.7577]
[1739461930678,7.536,2661.5,2661.3,3.75755]
[1739461930887,7.536,2661.5,2661.3,3.75748]
[1739461931255,7.536,2661.5,2661.3,3.75747]
[1739461931691,5.28,2661.5,2661.4,3.75742]
[1739461932041,5.28,2661.5,2661.4,6.75742]
[1739461932346,5.28,2661.5,2661.4,7.58032]
[1739461934165,5.28,2662.4,2661.4,3.8229]
[1739461934394,3.75478,2663.3,2662.5,3.75572]
[1739461934395,5.28,2662.8,2662.5,3.75572]
[1739461934598,5.28,2662.8,2662.7,3.75558]
[1739461934779,5.28,2662.8,2662.5,3.75572]
[1739461935108,5.28,2662.8,2662.1,4.50862]
[1739461935109,5.28,2663.0,2662.8,3.75543]
[1739461935276,4.06664,2663.4,2662.7,7.51105]
[1739461935277,3.75464,2663.4,2662.7,7.51105]
[1739461935483,3.75483,2663.3,2662.7,3.75547]
[1739461935899,5.11295774,2663.4,2662.9,3.75522]
[1739461936219,4.54853737,2663.5,2662.7,0.7983]
[1739461936220,0.312,2663.5,2662.7,0.7983]
[1739461936363,4.0665,2663.5,2663.0,3.75507]
[1739461936564,3.75476,2663.3,2662.8,3.75533]
[1739461937495,3.75511,2663.1,2662.5,3.75585]
[1739461937694,0.0075,2663.0,2662.5,3.75585]
[1739461937882,0.0075,2663.0,2662.4,3.75596]
[1739461937883,0.015,2663.0,2662.4,3.75596]
[1739461938209,0.38095486,2663.1,2662.7,3.75545]
[1739461938367,4.23653737,2663.8,2662.9,3.75521]
[1739461938705,4.23653737,2663.8,2663.1,3.75502]
[1739461938706,4.06627,2663.7,2663.1,3.75502]
[1739461938861,4.06627,2663.7,2663.2,3.75483]
[1739461939066,4.23653737,2663.8,2663.2,3.75483]
[1739461939067,7.99060737,2663.8,2663.2,3.75483]
[1739461939301,3.75434,2663.6,2663.1,3.75502]
[1739461939608,0.0075,2663.3,2662.6,0.7553]
[1739461939763,0.0075,2663.2,2662.3,0.8199]
[1739461939964,3.76239,2663.2,2662.6,3.75561]
[1739461940192,3.75503,2663.1,2662.6,3.75561]
[1739461940395,0.0075,2663.2,2662.6,3.75561]
[1739461940595,4.139381,2663.2,2662.6,7.51126]
[1739461940813,0.384481,2663.2,2662.8,3.75542]
[1739461941014,0.0075,2663.4,2662.9,3.75522]
[1739461941230,4.0665,2663.5,2663.0,3.75512]
[1739461941431,4.0665,2663.5,2662.8,0.7915]
[1739461941603,3.75467,2663.4,2662.8,4.54684]
[1739461941927,3.75467,2663.4,2662.8,8.3022]
[1739461942298,5.28,2663.6,2662.8,1.62172]
[1739461942496,5.28,2663.6,2663.3,3.75464]
[1739461942728,0.0075,2663.7,2663.3,3.75464]
[1739461943418,3.76173,2663.7,2663.2,3.75482]
[1739461943618,0.0075,2663.7,2662.8,0.7915]
[1739461943929,5.28,2663.8,2663.6,3.75423]
[1739461944299,5.28,2663.8,2663.4,0.8291]
[1739461944559,5.28,2663.8,2663.6,3.75431]
[1739461944734,5.28,2663.8,2663.6,3.7543]
[1739461945225,5.28,2663.8,2663.4,4.58359]
[1739461945528,5.28,2663.8,2663.2,6.75479]
[1739461945732,5.28,2663.8,2663.6,3.75421]
[1739461945930,5.28,2663.8,2663.7,3.75417]
[1739461946083,5.28,2663.8,2663.4,3.75454]
[1739461946289,5.28,2663.8,2663.5,3.75445]
[1739461946889,9.03404,2663.8,2663.4,3.75454]
[1739461947090,9.03404,2663.8,2663.3,3.75472]
[1739461947326,0.0075,2663.6,2663.0,3.75513]
[1739461947495,3.7619,2663.6,2663.0,3.75505]
[1739461947707,3.75453,2663.5,2662.9,3.7552]
[1739461947902,3.75453,2663.5,2663.0,3.75511]
[1739461948097,5.2875,2663.4,2662.8,0.7601]
[1739461948361,9.08911663,2663.4,2662.6,3.75563]
[1739461948563,3.75503,2663.1,2662.6,3.75563]
[1739461948916,7.5435,2663.4,2662.9,3.75529]
[1739461948917,3.75483,2663.3,2662.9,3.75529]
[1739461949321,5.28,2663.4,2663.1,3.755]
[1739461949742,5.28,2663.4,2663.2,3.75478]
[1739461949942,5.28,2663.7,2663.2,7.50958]
[1739461950216,6.26144072,2663.7,2663.1,3.75497]
[1739461950526,3.7546,2663.4,2662.8,4.53532]
[1739461950726,7.50929,2663.4,2662.9,3.75525]
[1739461950935,3.76232,2663.3,2662.8,3.75544]
[1739461951147,0.0075,2663.3,2662.7,3.75548]
[1739461951348,3.75498,2663.2,2662.7,3.75548]
[1739461951535,3.76253,2663.1,2662.6,3.75563]
[1739461951737,5.28,2663.0,2662.5,4.57877]
[1739461951951,5.28,2663.0,2662.3,0.76305521]
[1739461952135,3.76288,2662.9,2662.3,3.75601]
[1739461952345,3.75553,2662.8,2662.3,3.0]
[1739461952566,9.03561,2662.7,2662.2,3.7562]
[1739461952724,9.03561,2662.7,2662.0,3.75647]
[1739461952924,11.29911,2662.7,2662.0,4.87947687]
[1739461953128,0.015,2662.6,2661.8,5.954]
[1739461953352,0.0075,2662.4,2661.9,3.75663]
[1739461953556,0.05445327,2662.4,2661.8,9.71071]
[1739461953758,3.75617,2662.3,2661.8,5.954]
[1739461954068,5.2875,2662.4,2661.8,9.71083]
[1739461954238,5.2875,2662.4,2662.1,3.75635]
[1739461954641,5.2875,2662.4,2662.1,3.75631]
[1739461954848,5.2875,2662.4,2662.0,3.75647]
[1739461955064,5.2875,2662.4,2661.8,5.954]
[1739461955244,7.51241,2662.3,2661.8,5.954]
[1739461955431,3.75618,2662.3,2661.8,7.22509]
[1739461955737,0.0075,2662.2,2661.8,5.954]
[1739461955948,0.0075,2662.2,2661.8,9.71083]
[1739461956243,9.03601,2662.4,2661.9,3.75668]
[1739461956996,2.256,2662.3,2661.9,3.75668]
[1739461957201,6.01223,2662.3,2661.8,5.954]
[1739461957396,3.75642,2662.2,2661.8,5.954]
[1739461957604,3.75654,2662.1,2661.5,5.3229615]
[1739461957810,0.0075,2662.0,2661.1,0.778]
[1739461957979,3.75712,2661.7,2661.1,3.7578]
[1739461958288,3.75727,2661.6,2661.1,3.7578]
[1739461958579,0.0075,2661.6,2661.1,3.0]
[1739461958777,0.0075,2661.6,2660.9,3.75802]
[1739461958778,3.83998136,2661.5,2660.9,3.75802]
[1739461959075,7.59735136,2661.5,2661.0,0.375802]
[1739461959229,3.75743,2661.4,2661.0,3.375802]
[1739461959433,5.2875,2661.3,2660.7,3.7583]
[1739461959643,5.28,2661.3,2660.5,1.54632377]
[1739461960058,0.0823438,2661.2,2661.1,3.7578]
[1739461960389,5.28,2661.3,2661.0,3.75797]
[1739461960587,5.28,2661.3,2660.5,5.30498377]
[1739461960588,0.0823438,2661.2,2660.7,3.75832]
[1739461960751,0.0823438,2661.2,2660.7,0.53046438]
[1739461960950,0.0823438,2661.2,2660.8,3.75826]
[1739461961183,9.03763,2661.3,2660.7,3.7583]
[1739461961358,0.0823438,2661.1,2660.7,7.51661]
[1739461961557,3.75772,2661.2,2660.7,3.7583]
[1739461961771,0.0823438,2661.0,2660.7,3.7583]
[1739461962094,3.75772,2661.2,2660.7,3.7583]
[1739461962279,0.0823438,2660.9,2660.7,4.590769]
[1739461962482,5.28,2661.3,2660.8,3.75826]
[1739461962676,9.03756,2661.3,2660.8,3.75826]
[1739461962884,5.28,2661.3,2660.7,0.832469]
[1739461963069,5.28,2661.3,2661.0,3.75785]
[1739461963276,9.03756,2661.3,2660.6,3.0]
[1739461963452,9.03756,2661.3,2660.7,3.75833]
[1739461963796,3.75787,2661.1,2660.6,6.75846]
[1739461963947,5.2875,2661.0,2660.6,6.75846]
[1739461964151,5.2875,2661.0,2660.6,3.0]
[1739461964348,5.28,2661.0,2660.6,6.75844]
[1739461964585,5.28,2661.0,2660.9,3.75812]
[1739461964776,5.28,2661.0,2660.7,3.75833]
[1739461965295,5.28,2661.0,2660.8,3.75816]
[1739461965457,5.28,2661.0,2660.9,3.75812]
[1739461966376,5.28,2661.0,2660.8,3.75816]
[1739461966553,5.28,2661.0,2660.7,3.75839]
[1739461966754,5.28,2661.0,2660.6,6.75846]
[1739461967294,5.28,2661.0,2660.6,6.75844]
[1739461967798,3.75834,2660.8,2660.3,9.71291]
[1739461967950,0.0075,2660.9,2660.3,5.954]
[1739461968153,3.75841,2660.7,2660.3,5.954]
[1739461968779,0.0075,2660.6,2660.3,5.954]
[1739461969006,0.0075,2660.6,2659.7,0.7382775]
[1739461969007,0.015,2660.4,2659.7,0.7382775]
[1739461969297,3.75948,2660.0,2659.4,3.76015]
[1739461969598,3.75972,2659.8,2659.4,3.0]
[1739461969773,3.75949,2660.0,2659.4,3.0]
[1739461969973,3.75926,2660.1,2659.5,3.76009]
[1739461970174,3.75967,2659.9,2659.1,1.56339497]
[1739461970502,3.75947,2660.0,2659.4,3.76019]
[1739461970997,3.75954,2659.9,2659.4,3.0]
[1739461971200,0.015,2659.6,2659.1,4.51247497]
[1739461971397,0.015,2659.6,2659.2,3.76048]
[1739461971910,3.7749,2659.7,2659.1,3.76062]
[1739461972063,8.68308137,2659.9,2659.2,3.76039]
[1739461972397,8.30712737,2659.9,2659.3,3.76028]
[1739461972603,0.0469989,2659.8,2659.1,6.7606]